[Event "Esbjerg Efterår 2021 - Esbjergmesterskabet"]
[Site "Esbjerg, Denmark"]
[Date "2021.10.23"]
[Round "4.7"]
[White "Vinther, Christoffer"]
[Black "Jensen, Henrik Tranberg"]
[Result "0-1"]
[TimeControl "1.-3. 20 min + 5 sek, 4.-7. 90 min + 30 sek"]
[WhiteElo "1607"]
[BlackElo "1960"]

1. e4 {[%clk 01:30:57]} {[%emt 00:00:02]} g6 {[%clk 01:30:04]} {[%emt
00:00:56]} 2. d4 {[%clk 01:31:00]} {[%emt 00:00:28]} Bg7 {[%clk 01:30:32]}
{[%emt 00:00:02]} 3. Nc3 {[%clk 01:30:38]} {[%emt 00:00:51]} d6 {[%clk
01:30:35]} {[%emt 00:00:28]} 4. Nf3 {[%clk 01:30:42]} {[%emt 00:00:25]} Nf6
{[%clk 01:30:22]} {[%emt 00:00:43]} 5. Bc4 {[%clk 01:29:26]} {[%emt 00:01:46]}
O-O {[%clk 01:30:34]} {[%emt 00:00:19]} 6. O-O {[%clk 01:28:49]} {[%emt
00:01:06]} c6 {[%clk 01:30:56]} {[%emt 00:00:09]} 7. a4 {[%clk 01:27:20]}
{[%emt 00:01:59]} d5 {[%clk 01:30:19]} {[%emt 00:01:07]} 8. exd5 {[%clk
01:26:59]} {[%emt 00:00:50]} cxd5 {[%clk 01:30:17]} {[%emt 00:00:32]} 9. Bd3
{[%clk 01:26:46]} {[%emt 00:00:42]} Nc6 {[%clk 01:30:33]} {[%emt 00:00:14]} 10.
Re1 {[%clk 01:24:57]} {[%emt 00:02:20]} Bg4 {[%clk 01:30:49]} {[%emt 00:00:13]}
11. Be3 {[%clk 01:22:02]} {[%emt 00:03:25]} e5 {[%clk 01:30:28]} {[%emt
00:00:51]} 12. dxe5 {[%clk 01:20:39]} {[%emt 00:01:53]} Nxe5 {[%clk 01:30:29]}
{[%emt 00:00:29]} 13. Be2 {[%clk 01:20:26]} {[%emt 00:00:43]} Nc4 {[%clk
01:24:02]} {[%emt 00:06:57]} 14. Nxd5 {[%emt 00:20:18]} Nxd5 {[%clk 01:22:07]}
{[%emt 00:00:01]} 15. Bxc4 {[%clk 01:02:57]} {[%emt 00:00:35]} Nxe3 {[%clk
01:20:35]} {[%emt 00:02:03]} 16. Rxe3 {[%clk 01:02:31]} {[%emt 00:00:55]} Qc7
{[%clk 01:17:53]} {[%emt 00:03:10]} 17. Qe2 {[%clk 01:00:03]} {[%emt 00:02:59]}
Rac8 {[%clk 01:17:36]} {[%emt 00:00:48]} 18. Bd3 {[%clk 00:59:30]} {[%emt
00:01:03]} Bxb2 {[%clk 01:16:24]} {[%emt 00:01:43]} 19. Rb1 {[%clk 00:58:35]}
{[%emt 00:01:24]} Bf6 {[%clk 01:15:55]} {[%emt 00:00:59]} 20. h3 {[%clk
00:58:09]} {[%emt 00:00:56]} Be6 {[%clk 01:14:46]} {[%emt 00:01:39]} 21. Ne5
{[%clk 00:55:01]} {[%emt 00:03:38]} Rfd8 {[%clk 01:11:58]} {[%emt 00:03:19]} 22.
Ng4 {[%clk 00:52:57]} {[%emt 00:02:33]} Bd4 {[%clk 01:09:03]} {[%emt 00:03:25]}
23. Rxe6 {[%clk 00:49:52]} {[%emt 00:03:35]} fxe6 {[%clk 01:09:31]} {[%emt
00:00:02]} 24. Qxe6+ {[%clk 00:49:57]} {[%emt 00:00:25]} Kg7 {[%clk 01:09:51]}
{[%emt 00:00:10]} 25. Rb4 {[%clk 00:48:46]} {[%emt 00:01:40]} Re8 {[%clk
01:09:44]} {[%emt 00:00:38]} 26. Qd5 {[%clk 00:48:16]} {[%emt 00:01:00]} Bb6
{[%clk 01:04:58]} {[%emt 00:05:16]} 27. a5 {[%clk 00:44:30]} {[%emt 00:04:15]}
Re1+ {[%clk 01:04:13]} {[%emt 00:01:15]} 28. Bf1 {[%clk 00:44:46]} {[%emt
00:00:15]} Qc5 {[%clk 01:03:54]} {[%emt 00:00:49]} 29. Qd7+ {[%clk 00:43:48]}
{[%emt 00:01:27]} Re7 {[%clk 01:04:06]} {[%emt 00:00:20]} 30. Qb5 {[%emt
00:16:05]} Bxa5 {[%emt 00:07:23]} 0-1

[Event "Esbjerg Efterår 2021 - Esbjergmesterskabet"]
[Site "Esbjerg, Denmark"]
[Date "2021.10.23"]
[Round "4.8"]
[White "Schou-Jørgensen, Jan"]
[Black "Bisercic, Zlatan"]
[Result "1/2-1/2"]
[TimeControl "1.-3. 20 min + 5 sek, 4.-7. 90 min + 30 sek"]
[WhiteElo "1722"]
[BlackElo "1300"]

1. d4 {[%clk 01:30:57]} {[%emt 00:00:02]} Nf6 {[%clk 01:30:33]} {[%emt
00:00:28]} 2. Nf3 {[%clk 01:30:42]} {[%emt 00:00:44]} e6 {[%clk 01:28:15]}
{[%emt 00:02:48]} 3. c4 {[%clk 01:29:20]} {[%emt 00:01:52]} b6 {[%clk
01:26:15]} {[%emt 00:02:30]} 4. g3 {[%clk 01:24:29]} {[%emt 00:05:20]} Bb7
{[%clk 01:26:07]} {[%emt 00:00:40]} 5. Bg2 {[%clk 01:23:24]} {[%emt 00:01:34]}
c5 {[%clk 01:25:13]} {[%emt 00:01:24]} 6. O-O {[%clk 01:18:59]} {[%emt
00:04:55]} cxd4 {[%clk 01:23:18]} {[%emt 00:02:25]} 7. Nxd4 {[%clk 01:16:54]}
{[%emt 00:02:35]} Bxg2 {[%clk 01:23:24]} {[%emt 00:00:23]} 8. Kxg2 {[%clk
01:17:08]} {[%emt 00:00:16]} Qc8 {[%clk 01:19:03]} {[%emt 00:04:52]} 9. b3
{[%clk 01:03:48]} {[%emt 00:13:51]} Qb7+ {[%clk 01:12:18]} {[%emt 00:07:14]} 10.
Kg1 {[%clk 00:52:47]} {[%emt 00:11:31]} Bc5 {[%clk 01:08:10]} {[%emt 00:04:38]}
11. Nf3 {[%clk 00:47:14]} {[%emt 00:06:03]} d5 {[%clk 01:07:13]} {[%emt
00:01:27]} 12. Bb2 {[%clk 00:41:46]} {[%emt 00:05:58]} Be7 {[%clk 01:07:15]}
{[%emt 00:00:29]} 13. Nc3 {[%clk 00:38:18]} {[%emt 00:03:58]} dxc4 {[%clk
01:05:32]} {[%emt 00:02:13]} 14. bxc4 {[%clk 00:38:21]} {[%emt 00:00:26]} O-O
{[%clk 01:04:21]} {[%emt 00:01:41]} 15. Qb3 {[%clk 00:34:00]} {[%emt 00:04:51]}
Ne4 {[%clk 01:00:37]} {[%emt 00:04:14]} 16. Nxe4 {[%clk 00:31:17]} {[%emt
00:03:13]} Qxe4 {[%clk 01:00:38]} {[%emt 00:00:27]} 17. Qd3 {[%clk 00:31:30]}
{[%emt 00:00:19]} Qb7 {[%clk 00:52:30]} {[%emt 00:08:38]} 18. Rad1 {[%clk
00:29:21]} {[%emt 00:02:39]} Nc6 {[%clk 00:51:57]} {[%emt 00:01:02]} 19. Qd7
{[%clk 00:28:26]} {[%emt 00:01:26]} Rab8 {[%clk 00:48:40]} {[%emt 00:03:46]} 20.
Ne5 {[%clk 00:25:02]} {[%emt 00:03:55]} Nxe5 {[%clk 00:41:08]} {[%emt
00:08:01]} 21. Bxe5 {[%clk 00:23:45]} {[%emt 00:01:47]} Qxd7 {[%clk 00:41:14]}
{[%emt 00:00:25]} 22. Rxd7 {[%clk 00:23:56]} {[%emt 00:00:19]} Rbe8 {[%clk
00:37:50]} {[%emt 00:03:53]} 23. Rxa7 {[%clk 00:23:16]} {[%emt 00:01:11]} Bc5
{[%clk 00:37:41]} {[%emt 00:00:39]} 24. Rd1 {[%clk 00:20:10]} {[%emt 00:03:36]}
Ra8 {[%emt 00:03:39]} 25. Rxa8 {[%clk 00:18:39]} Rxa8 {[%clk 00:36:41]} {[%emt
00:00:20]} 26. Rd2 {[%clk 00:17:09]} {[%emt 00:02:00]} h5 {[%clk 00:36:16]}
{[%emt 00:00:57]} 27. Kg2 {[%clk 00:15:16]} {[%emt 00:02:23]} f6 {[%clk
00:33:57]} {[%emt 00:02:50]} 28. Bd6 {[%clk 00:13:01]} {[%emt 00:02:44]} Rd8
{[%clk 00:31:37]} {[%emt 00:02:50]} 29. Bf4 {[%clk 00:13:03]} {[%emt 00:00:28]}
Ra8 {[%clk 00:31:19]} {[%emt 00:00:48]} 30. Be3 {[%clk 00:11:19]} {[%emt
00:02:14]} e5 {[%clk 00:30:16]} {[%emt 00:01:33]} 31. Bxc5 {[%clk 00:10:52]}
{[%emt 00:00:57]} bxc5 {[%clk 00:30:31]} {[%emt 00:00:15]} 32. Rd5 {[%clk
00:10:12]} {[%emt 00:01:10]} Rxa2 {[%clk 00:29:53]} {[%emt 00:01:08]} 33. Rxc5
{[%clk 00:10:19]} {[%emt 00:00:23]} Rxe2 {[%clk 00:29:10]} {[%emt 00:01:12]} 34.
Kf3 {[%clk 00:10:20]} {[%emt 00:00:29]} Re1 {[%clk 00:22:38]} {[%emt 00:07:03]}
35. h4 {[%clk 00:08:42]} {[%emt 00:02:07]} g6 {[%clk 00:16:14]} {[%emt
00:06:53]} 36. Rc6 {[%clk 00:08:14]} {[%emt 00:01:00]} Kf7 {[%clk 00:16:03]}
{[%emt 00:00:41]} 37. Rd6 {[%clk 00:06:07]} {[%emt 00:02:38]} Ke7 {[%clk
00:16:09]} {[%emt 00:00:23]} 38. Ra6 {[%clk 00:05:37]} {[%emt 00:01:00]} Rc1
{[%clk 00:15:50]} {[%emt 00:00:49]} 39. Ra7+ {[%clk 00:05:35]} {[%emt
00:00:33]} Kf8 {[%clk 00:16:07]} {[%emt 00:00:12]} 40. Rc7 {[%clk 00:05:53]}
{[%emt 00:00:12]} Ke8 {[%clk 00:13:23]} {[%emt 00:03:14]} 41. Rg7 {[%clk
00:05:46]} {[%emt 00:00:36]} Rc3+ {[%clk 00:12:53]} {[%emt 00:01:00]} 42. Kg2
{[%clk 00:05:42]} {[%emt 00:00:35]} Rc2 {[%clk 00:09:29]} {[%emt 00:03:54]} 43.
Kf1 {[%clk 00:05:07]} {[%emt 00:01:05]} Kf8 {[%clk 00:08:31]} {[%emt 00:01:28]}
44. Rxg6 {[%clk 00:03:43]} {[%emt 00:01:53]} Kf7 {[%clk 00:08:59]} {[%emt
00:00:02]} 45. Rh6 {[%clk 00:03:52]} {[%emt 00:00:22]} Kg7 {[%clk 00:09:27]}
{[%emt 00:00:02]} 46. Rxh5 {[%clk 00:04:08]} {[%emt 00:00:13]} Rxc4 {[%clk
00:09:44]} {[%emt 00:00:13]} 47. Ke2 {[%clk 00:03:57]} {[%emt 00:00:41]} Rc3
{[%clk 00:10:00]} {[%emt 00:00:14]} 48. Rf5 {[%clk 00:04:12]} {[%emt 00:00:15]}
Ra3 {[%clk 00:08:58]} {[%emt 00:01:33]} 49. Rf3 {[%clk 00:04:29]} {[%emt
00:00:14]} Ra2+ {[%clk 00:09:16]} {[%emt 00:00:10]} 50. Kf1 {[%clk 00:04:44]}
{[%emt 00:00:16]} Ra1+ {[%clk 00:09:34]} {[%emt 00:00:13]} 51. Kg2 {[%clk
00:05:03]} {[%emt 00:00:12]} Ra2 {[%clk 00:09:24]} {[%emt 00:00:39]} 52. g4
{[%clk 00:05:00]} {[%emt 00:00:33]} Ra4 {[%clk 00:09:06]} {[%emt 00:00:47]} 53.
Rg3 {[%clk 00:04:59]} {[%emt 00:00:31]} Rf4 {[%clk 00:08:00]} {[%emt 00:01:36]}
54. f3 {[%clk 00:04:40]} {[%emt 00:00:49]} e4 {[%clk 00:07:39]} {[%emt
00:00:52]} 55. fxe4 {[%clk 00:04:57]} {[%emt 00:00:13]} Rxe4 {[%clk 00:08:03]}
{[%emt 00:00:05]} 56. Kf3 {[%clk 00:05:11]} {[%emt 00:00:17]} Ra4 {[%clk
00:08:10]} {[%emt 00:00:23]} 57. Rg1 {[%clk 00:05:15]} {[%emt 00:00:25]} Ra3+
{[%clk 00:07:07]} {[%emt 00:01:33]} 58. Kg2 {[%clk 00:05:24]} {[%emt 00:00:21]}
Ra2+ {[%clk 00:07:33]} {[%emt 00:00:05]} 59. Kh3 {[%clk 00:05:39]} {[%emt
00:00:15]} Ra3+ {[%clk 00:07:58]} {[%emt 00:00:06]} 60. Rg3 {[%clk 00:06:04]}
{[%emt 00:00:04]} Ra5 {[%clk 00:07:17]} {[%emt 00:01:11]} 61. Rf3 {[%clk
00:05:04]} {[%emt 00:01:30]} Kg6 {[%clk 00:07:10]} {[%emt 00:00:37]} 62. Kg3
{[%clk 00:04:54]} {[%emt 00:00:40]} f5 {[%clk 00:06:50]} {[%emt 00:03:08]}
1/2-1/2

[Event "Esbjerg Efterår 2021 - Esbjergmesterskabet"]
[Site "Esbjerg, Denmark"]
[Date "2021.10.23"]
[Round "4.9"]
[White "Marcussen, Claus"]
[Black "Christensen, Joel Nødskov"]
[Result "1-0"]
[TimeControl "1.-3. 20 min + 5 sek, 4.-7. 90 min + 30 sek"]
[WhiteElo "1543"]
[BlackElo "1404"]

1. f4 {[%clk 01:30:58]} {[%emt 00:00:01]} d5 {[%clk 01:30:51]} {[%emt
00:00:10]} 2. Nf3 {[%clk 01:31:26]} {[%emt 00:00:01]} Nc6 {[%clk 01:31:14]}
{[%emt 00:00:07]} 3. e3 {[%clk 01:31:48]} {[%emt 00:00:09]} g6 {[%clk
01:30:25]} {[%emt 00:01:19]} 4. d4 {[%clk 01:32:16]} {[%emt 00:00:02]} Bg7
{[%clk 01:30:15]} {[%emt 00:00:39]} 5. c3 {[%clk 01:32:44]} {[%emt 00:00:02]}
Nf6 {[%clk 01:30:24]} {[%emt 00:00:21]} 6. Bd3 {[%clk 01:33:13]} {[%emt
00:00:02]} O-O {[%clk 01:30:16]} {[%emt 00:00:38]} 7. Nbd2 {[%clk 01:33:40]}
{[%emt 00:00:02]} a6 {[%clk 01:30:22]} {[%emt 00:00:24]} 8. O-O {[%clk
01:34:07]} {[%emt 00:00:03]} b5 {[%clk 01:24:29]} {[%emt 00:06:24]} 9. Ne5
{[%clk 01:33:40]} {[%emt 00:00:56]} Bb7 {[%clk 01:24:28]} {[%emt 00:00:32]} 10.
Nb3 {[%clk 01:29:59]} {[%emt 00:04:10]} Qc8 {[%clk 01:23:58]} {[%emt 00:01:01]}
11. Nc5 {[%clk 01:26:15]} {[%emt 00:04:13]} Nxe5 {[%clk 01:24:04]} {[%emt
00:00:24]} 12. fxe5 {[%clk 01:26:36]} {[%emt 00:00:10]} Nd7 {[%clk 01:23:43]}
{[%emt 00:00:51]} 13. Nxb7 {[%clk 01:26:55]} {[%emt 00:00:11]} Qxb7 {[%clk
01:24:03]} {[%emt 00:00:10]} 14. Qg4 {[%clk 01:23:27]} {[%emt 00:03:57]} c5
{[%clk 01:23:57]} {[%emt 00:00:37]} 15. e4 {[%clk 01:18:15]} {[%emt 00:05:41]}
e6 {[%clk 01:24:09]} {[%emt 00:00:19]} 16. Bg5 {[%clk 01:14:51]} {[%emt
00:03:53]} cxd4 {[%clk 01:23:16]} {[%emt 00:01:23]} 17. cxd4 {[%clk 01:15:16]}
{[%emt 00:00:05]} Nb6 {[%clk 01:22:51]} {[%emt 00:00:56]} 18. Bf6 {[%clk
01:12:42]} {[%emt 00:03:04]} Nc4 {[%clk 01:22:09]} {[%emt 00:01:12]} 19. Rf3
{[%clk 01:01:57]} {[%emt 00:11:14]} Nxb2 {[%clk 01:21:07]} {[%emt 00:01:32]} 20.
Rh3 {[%clk 01:01:28]} {[%emt 00:00:58]} Nxd3 {[%clk 01:21:12]} {[%emt
00:00:25]} 21. Qh4 {[%clk 01:01:22]} {[%emt 00:00:37]} h5 {[%clk 01:21:18]}
{[%emt 00:00:24]} 22. Bxg7 {[%clk 01:01:16]} {[%emt 00:00:35]} Kxg7 {[%clk
01:21:34]} {[%emt 00:00:13]} 23. Qf6+ {[%clk 01:01:29]} {[%emt 00:00:19]} Kh6
{[%clk 01:21:29]} {[%emt 00:00:35]} 24. g4 {[%clk 01:01:01]} {[%emt 00:00:58]}
1-0

[Event "Esbjerg Efterår 2021 - Esbjergmesterskabet"]
[Site "Esbjerg, Denmark"]
[Date "2021.10.23"]
[Round "4.10"]
[White "Pommerencke, Lars"]
[Black "Jensen, Lucas"]
[Result "1-0"]
[TimeControl "1.-3. 20 min + 5 sek, 4.-7. 90 min + 30 sek"]
[WhiteElo "1630"]
[BlackElo "1372"]

1. e4 {[%clk 01:30:46]} {[%emt 00:00:13]} c6 {[%clk 01:30:57]} {[%emt
00:00:04]} 2. d4 {[%clk 01:30:39]} {[%emt 00:00:37]} d5 {[%clk 01:31:22]}
{[%emt 00:00:04]} 3. Nc3 {[%clk 01:30:13]} {[%emt 00:00:57]} dxe4 {[%clk
01:31:36]} {[%emt 00:00:16]} 4. Nxe4 {[%clk 01:29:16]} {[%emt 00:01:27]} Bf5
{[%clk 01:31:50]} {[%emt 00:00:15]} 5. Ng3 {[%clk 01:29:33]} {[%emt 00:00:12]}
Bg6 {[%clk 01:32:14]} {[%emt 00:00:07]} 6. Nf3 {[%clk 01:29:52]} {[%emt
00:00:11]} Nd7 {[%clk 01:30:56]} {[%emt 00:01:48]} 7. Bc4 {[%clk 01:28:43]}
{[%emt 00:01:39]} e6 {[%clk 01:30:32]} {[%emt 00:00:53]} 8. O-O {[%clk
01:28:54]} {[%emt 00:00:19]} Be7 {[%clk 01:29:40]} {[%emt 00:01:22]} 9. c3
{[%clk 01:28:25]} {[%emt 00:00:59]} Ngf6 {[%clk 01:28:51]} {[%emt 00:01:19]} 10.
Qe2 {[%clk 01:25:43]} {[%emt 00:03:12]} Nd5 {[%clk 01:27:10]} {[%emt 00:02:12]}
11. Bxd5 {[%clk 01:19:20]} {[%emt 00:06:53]} cxd5 {[%clk 01:25:36]} {[%emt
00:02:03]} 12. Bf4 {[%clk 01:19:10]} {[%emt 00:00:39]} O-O {[%clk 01:23:54]}
{[%emt 00:02:13]} 13. Qb5 {[%clk 01:18:52]} {[%emt 00:00:48]} Qc8 {[%clk
01:18:40]} {[%emt 00:05:43]} 14. a4 {[%clk 01:14:48]} {[%emt 00:04:35]} Qc6
{[%clk 01:16:59]} {[%emt 00:02:11]} 15. Ne5 {[%clk 01:12:59]} {[%emt 00:02:19]}
Nxe5 {[%clk 01:13:21]} {[%emt 00:04:07]} 16. Bxe5 {[%clk 01:10:25]} {[%emt
00:03:05]} Rfd8 {[%clk 01:09:39]} {[%emt 00:04:12]} 17. Qxc6 {[%clk 01:10:09]}
{[%emt 00:00:46]} bxc6 {[%clk 01:09:45]} {[%emt 00:00:23]} 18. b4 {[%emt
00:00:37]} Bd6 {[%clk 01:07:50]} {[%emt 00:02:23]} 19. Bxd6 {[%clk 01:10:19]}
{[%emt 00:00:17]} Rxd6 {[%clk 01:08:15]} {[%emt 00:00:04]} 20. Ne2 {[%clk
01:10:36]} {[%emt 00:00:13]} Rd7 {[%clk 01:05:02]} {[%emt 00:03:44]} 21. Nf4
{[%clk 01:09:19]} {[%emt 00:01:45]} Bf5 {[%clk 01:03:26]} {[%emt 00:02:07]} 22.
f3 {[%clk 01:09:34]} {[%emt 00:00:15]} h6 {[%clk 01:03:41]} {[%emt 00:00:15]}
23. g4 {[%clk 01:09:25]} {[%emt 00:00:38]} Bh7 {[%clk 01:03:48]} {[%emt
00:00:22]} 24. Rfe1 {[%clk 01:08:34]} {[%emt 00:01:22]} a5 {[%clk 01:01:45]}
{[%emt 00:02:35]} 25. Re2 {[%clk 01:07:18]} {[%emt 00:01:45]} axb4 {[%clk
01:01:04]} {[%emt 00:01:10]} 26. cxb4 {[%emt 00:09:35]} Rb7 {[%clk 01:00:39]}
{[%emt 00:00:48]} 27. Rb2 {[%clk 00:58:13]} {[%emt 00:00:37]} Rab8 {[%clk
01:00:43]} {[%emt 00:00:27]} 28. b5 {[%clk 00:56:33]} {[%emt 00:02:09]} cxb5
{[%clk 00:58:47]} {[%emt 00:02:27]} 29. Rxb5 {[%clk 00:56:36]} {[%emt
00:00:27]} Rxb5 {[%clk 00:57:43]} {[%emt 00:01:33]} 30. axb5 {[%clk 00:57:01]}
{[%emt 00:00:06]} Kf8 {[%clk 00:57:50]} {[%emt 00:00:23]} 31. Ra5 {[%clk
00:57:04]} {[%emt 00:00:26]} Ke7 {[%clk 00:56:10]} {[%emt 00:02:11]} 32. Ra7+
{[%clk 00:56:24]} {[%emt 00:01:10]} Ke8 {[%clk 00:56:08]} {[%emt 00:00:32]} 33.
Nh5 {[%clk 00:53:44]} {[%emt 00:03:09]} Rxb5 {[%clk 00:54:28]} {[%emt
00:02:11]} 34. Nxg7+ {[%clk 00:53:53]} {[%emt 00:00:20]} Kf8 {[%clk 00:53:28]}
{[%emt 00:01:31]} 35. Nxe6+ {[%clk 00:52:37]} {[%emt 00:01:46]} fxe6 {[%clk
00:51:54]} {[%emt 00:02:04]} 36. Rxh7 {[%clk 00:52:54]} {[%emt 00:00:13]} Rb4
{[%clk 00:50:39]} {[%emt 00:01:45]} 37. Rxh6 {[%clk 00:53:13]} {[%emt
00:00:11]} Rxd4 {[%clk 00:51:05]} {[%emt 00:00:03]} 38. Rxe6 {[%clk 00:53:28]}
{[%emt 00:00:16]} Kf7 {[%clk 00:50:43]} {[%emt 00:00:52]} 39. Re2 {[%clk
00:53:22]} {[%emt 00:00:35]} Rd1+ {[%clk 00:47:36]} {[%emt 00:03:37]} 40. Kf2
{[%clk 00:52:00]} {[%emt 00:01:52]} d4 {[%clk 00:47:14]} {[%emt 00:00:52]} 41.
Ra2 {[%clk 00:50:37]} {[%emt 00:01:53]} Ke6 {[%clk 00:43:26]} {[%emt 00:04:18]}
42. Kg3 {[%clk 00:50:04]} {[%emt 00:01:03]} d3 {[%clk 00:43:37]} {[%emt
00:00:19]} 43. Kf4 {[%clk 00:50:27]} {[%emt 00:00:06]} d2 {[%clk 00:43:33]}
{[%emt 00:00:35]} 44. Rc2 {[%clk 00:50:07]} {[%emt 00:00:51]} Kf6 {[%clk
00:43:30]} {[%emt 00:00:33]} 45. h4 {[%clk 00:46:40]} {[%emt 00:03:55]} Rh1
{[%clk 00:42:25]} {[%emt 00:01:36]} 46. Rxd2 {[%clk 00:47:04]} {[%emt
00:00:06]} Rxh4 {[%clk 00:42:51]} {[%emt 00:00:05]} 47. Rd6+ {[%clk 00:47:06]}
{[%emt 00:00:28]} Ke7 {[%clk 00:41:53]} {[%emt 00:01:27]} 48. Ra6 {[%clk
00:47:10]} {[%emt 00:00:26]} Rh3 {[%clk 00:41:19]} {[%emt 00:01:04]} 49. g5
{[%clk 00:47:23]} {[%emt 00:00:16]} Kf7 {[%clk 00:41:19]} {[%emt 00:00:31]} 50.
Kg4 {[%clk 00:47:42]} {[%emt 00:00:11]} Rh1 {[%clk 00:40:55]} {[%emt 00:00:55]}
51. Kf5 {[%clk 00:47:45]} {[%emt 00:00:26]} Rf1 {[%clk 00:41:02]} {[%emt
00:00:23]} 52. Ra7+ {[%clk 00:47:56]} {[%emt 00:00:19]} Kg8 {[%clk 00:41:00]}
{[%emt 00:00:33]} 53. f4 {[%clk 00:48:20]} {[%emt 00:00:06]} Kf8 {[%clk
00:40:38]} {[%emt 00:00:52]} 1-0

[ePGN "0.1;DGT LiveChess/2.2"]

[Event "Esbjerg Efterår 2021 - Esbjergmesterskabet"]
[Site "Esbjerg, Denmark"]
[Date "2021.10.23"]
[Round "5.1"]
[White "Pedersen, Nicolai Vesterbæk"]
[Black "Rødgaard, John"]
[Result "1-0"]
[TimeControl "1.-3. 20 min + 5 sek, 4.-7. 90 min + 30 sek"]
[WhiteElo "2343"]
[BlackElo "2319"]

1. c4 {[%clk 01:30:51]} {[%emt 00:00:08]} e6 {[%clk 01:30:03]} {[%emt
00:00:57]} 2. Nc3 {[%clk 01:30:38]} {[%emt 00:00:43]} d5 {[%clk 01:29:59]}
{[%emt 00:00:34]} 3. d4 {[%clk 01:30:38]} {[%emt 00:00:31]} Nf6 {[%clk
01:26:49]} {[%emt 00:03:40]} 4. cxd5 {[%clk 01:30:40]} {[%emt 00:00:28]} exd5
{[%clk 01:26:21]} {[%emt 00:00:57]} 5. Bg5 {[%clk 01:30:59]} {[%emt 00:00:12]}
c6 {[%clk 01:24:49]} {[%emt 00:02:02]} 6. e3 {[%clk 01:31:10]} {[%emt
00:00:19]} Be7 {[%clk 01:20:59]} {[%emt 00:04:19]} 7. Qc2 {[%clk 01:31:24]}
{[%emt 00:00:16]} Nbd7 {[%clk 01:19:27]} {[%emt 00:02:01]} 8. Bd3 {[%clk
01:30:51]} {[%emt 00:01:03]} Nh5 {[%clk 01:14:55]} {[%emt 00:05:02]} 9. Bxe7
{[%clk 01:25:02]} {[%emt 00:06:19]} Qxe7 {[%clk 01:15:10]} {[%emt 00:00:14]} 10.
O-O-O {[%clk 01:24:29]} {[%emt 00:01:04]} Nb6 {[%clk 01:07:29]} {[%emt
00:08:11]} 11. Nge2 {[%clk 01:24:03]} {[%emt 00:00:56]} Bg4 {[%clk 00:55:42]}
{[%emt 00:12:16]} 12. Rhe1 {[%clk 01:08:23]} {[%emt 00:16:10]} Nf6 {[%clk
00:49:31]} {[%emt 00:06:41]} 13. Kb1 {[%clk 00:52:25]} {[%emt 00:16:29]} Bxe2
{[%clk 00:39:02]} {[%emt 00:10:58]} 14. Rxe2 {[%clk 00:52:28]} {[%emt
00:00:27]} O-O-O {[%clk 00:38:44]} {[%emt 00:00:49]} 15. f3 {[%clk 00:44:29]}
{[%emt 00:08:29]} Kb8 {[%clk 00:36:20]} {[%emt 00:02:52]} 16. Qb3 {[%clk
00:39:38]} {[%emt 00:05:22]} Rhe8 {[%clk 00:25:52]} {[%emt 00:10:55]} 17. a4
{[%clk 00:37:32]} {[%emt 00:02:38]} Qc7 {[%clk 00:18:14]} {[%emt 00:08:07]} 18.
a5 {[%clk 00:34:57]} {[%emt 00:03:05]} Nc8 {[%clk 00:18:20]} {[%emt 00:00:24]}
19. a6 {[%clk 00:34:14]} {[%emt 00:01:14]} b6 {[%clk 00:18:29]} {[%emt
00:00:20]} 20. g4 {[%clk 00:31:22]} {[%emt 00:03:23]} g6 {[%clk 00:15:57]}
{[%emt 00:03:01]} 21. Rc1 {[%clk 00:31:03]} {[%emt 00:00:49]} Re6 {[%clk
00:14:51]} {[%emt 00:01:36]} 22. Na2 {[%clk 00:29:55]} {[%emt 00:01:39]} Qd7
{[%clk 00:13:22]} {[%emt 00:01:58]} 23. Nb4 {[%clk 00:29:29]} {[%emt 00:00:56]}
Ne7 {[%clk 00:13:21]} {[%emt 00:00:31]} 24. Rec2 {[%clk 00:24:26]} {[%emt
00:05:34]} Rc8 {[%clk 00:09:21]} {[%emt 00:04:30]} 25. g5 {[%clk 00:19:11]}
{[%emt 00:05:45]} Ne8 {[%clk 00:08:25]} {[%emt 00:01:25]} 26. Bf1 {[%clk
00:15:19]} {[%emt 00:04:22]} f5 {[%clk 00:05:07]} {[%emt 00:03:48]} 27. gxf6
{[%clk 00:15:03]} {[%emt 00:00:46]} Rxf6 {[%clk 00:05:17]} {[%emt 00:00:19]} 28.
Nd3 {[%clk 00:14:25]} {[%emt 00:01:09]} Rxf3 {[%clk 00:03:03]} {[%emt
00:02:44]} 29. Ne5 {[%clk 00:14:00]} {[%emt 00:00:55]} Qf5 {[%clk 00:03:31]}
{[%emt 00:00:03]} 30. Nxf3 {[%clk 00:11:26]} {[%emt 00:03:03]} Qxf3 {[%clk
00:03:58]} {[%emt 00:00:03]} 31. Bg2 {[%clk 00:11:36]} {[%emt 00:00:18]} Qf5
{[%clk 00:02:54]} {[%emt 00:01:36]} 32. e4 {[%clk 00:11:28]} {[%emt 00:00:39]}
dxe4 {[%clk 00:01:07]} {[%emt 00:02:17]} 33. Bh3 {[%clk 00:11:20]} {[%emt
00:00:38]} Qf6 {[%clk 00:01:11]} {[%emt 00:00:26]} 34. Bxc8 {[%clk 00:06:26]}
{[%emt 00:05:23]} Kxc8 {[%clk 00:01:39]} {[%emt 00:00:02]} 35. Qh3+ {[%clk
00:06:04]} {[%emt 00:00:52]} Kc7 {[%clk 00:01:35]} {[%emt 00:00:34]} 36. Qxh7
{[%clk 00:05:34]} {[%emt 00:01:00]} Ng7 {[%clk 00:01:50]} {[%emt 00:00:16]} 37.
Qh8 {[%clk 00:05:41]} {[%emt 00:00:22]} Qxd4 {[%clk 00:01:25]} {[%emt
00:00:55]} 38. Qa8 {[%clk 00:05:39]} {[%emt 00:00:32]} b5 {[%clk 00:00:55]}
{[%emt 00:01:00]} 39. Rxc6+ {[%clk 00:03:41]} {[%emt 00:02:29]} Nxc6 {[%clk
00:00:53]} {[%emt 00:00:32]} 40. Rxc6+ {[%clk 00:03:57]} {[%emt 00:00:15]} Kd7
{[%clk 00:01:15]} {[%emt 00:00:06]} 41. Qb7+ {[%clk 00:04:17]} {[%emt
00:00:11]} 1-0